Cogmind - Beta 16 @@@ ROGUE MODE // 2026.01.03 @ 18:21:30 Player: StaticNoob Result: Destroyed by H-88 Terminator with KE Penetrator Performance ------------- Evolutions (9) 4500 Regions Visited (11) 2200 Robots Destroyed (93) 465 Value Destroyed (4029) 4029 Prototype IDs (20) 400 Alien Tech Used (2) 400 Bonus (6877) 6877 TOTAL SCORE: 18871 Bonus ------- High Alert Combat Kills 168 Follower Combat Kills 909 Registered with UFD 300 Met Optimus in HQ 500 Used Core Reset Matrix 3000 Met Sigix 2000 Cogmind --------- Core Integrity 0/1600 Matter 300/300 Energy 99/100 System Corruption 17% Temperature Cool (2) Movement Hovering (70) Location -1/Access Parts ------- > --- POWER (3) -------- (None) > --- PROPULSION (6) --- Improved Gyrokinetic Inverter > --- UTILITY (14) ----- Advanced Signal Interpreter Graphene Brace A0-MCA's Component Scanner > --- WEAPON (2) ------- (None) > --- INVENTORY (5) ---- Quantum Capacitor Sigix Containment Pod Peak State ------------ > --- POWER ------------ Light Antimatter Reactor Micro Antimatter Reactor Micro Antimatter Reactor > --- PROPULSION ------- Improved Antigrav System Improved Antigrav System Improved Gyrokinetic Inverter Combat Antigrav System Antigrav Array > --- UTILITY ---------- Medium Storage Unit Machine Analyzer Advanced Sensor Array Advanced Signal Interpreter Surveybot 17 Chip Quantum Capacitor Advanced ECM Suite Improved Cloaking Device Graphene Brace Hacking Suite Advanced Hacking Suite A0-MCA's Component Scanner Advanced Recalibrator > --- WEAPON ----------- Enhanced Nova Cannon Nanosword > --- INVENTORY -------- Improved Antigrav System Small Battery Experimental Matter Compressor Improved Targeting Computer Quantum Capacitor Long-range Proton Cannon Advanced Remote Datajack Sigix Containment Pod [Rating: 172] Favorites ----------- Power Micro Antimatter Reactor Engine Subdweller Power Source Power Core Neutrino Core Reactor Micro Antimatter Reactor Propulsion Improved Treads Treads Improved Treads Leg Myomer Leg Wheel High-density Centrium Wheel Hover Unit Improved Antigrav System Flight Unit Impulse Thruster Utility Seismic Detector Device Seismic Detector Storage Large Storage Unit Processor Advanced Signal Interpreter Hackware Advanced Hacking Suite Protection Improved Medium Armor Plating Weapon Spread Laser Energy Gun Spread Laser Energy Cannon Nova Cannon Ballistic Gun Light Assault Rifle Ballistic Cannon Hardcell Cannon Launcher Heavy Rocket Launcher Special Weapon Junk Cannon Slashing Weapon Nanosword Build | -11 -10 -10 -10 -7 -5 -4 -4 -3 -3 -2 -1 ------- Run | Yrd Mat Min Sub Scr Fac Fac Ext Res Qua Res Acc Slots Evolved 18 | . . . . . 10 2 . 2 . 2 2 Power 2 | . . . . . 1 . . 1 . . . Propulsion 4 | . . . . . 1 2 . . . 1 . Utility 12 | . . . . . 8 . . 1 . 1 2 Weapon . | . . . . . . . . . . . . Parts Attached 186 | 7 7 . 6 9 23 17 32 35 21 6 23 Power 31 | 1 1 . 2 2 4 . 8 5 4 1 3 Engine 6 | 1 . . 1 2 2 . . . . . . Core 10 | . 1 . 1 . 2 . 5 1 . . . Reactor 15 | . . . . . . . 3 4 4 1 3 Propulsion 62 | 2 4 . 2 2 4 8 11 13 6 2 8 Treads 12 | 2 4 . 2 2 . 1 . 1 . . . Leg 17 | . . . . . 3 2 11 1 . . . Wheel 6 | . . . . . . . . 2 3 1 . Hover 23 | . . . . . 1 2 . 8 3 1 8 Flight 4 | . . . . . . 3 . 1 . . . Utility 59 | 2 1 . . 1 9 6 6 13 8 3 10 Device 31 | 1 . . . . 4 4 4 6 4 1 7 Storage 7 | 1 1 . . 1 . . . 1 1 1 1 Processor 14 | . . . . . 4 1 . 3 3 1 2 Hackware 3 | . . . . . . . . 3 . . . Protection 4 | . . . . . 1 1 2 . . . . Artifact . | . . . . . . . . . . . . Weapon 34 | 2 1 . 2 4 6 3 7 4 3 . 2 Energy Gun 10 | . 1 . 1 1 3 . 2 1 1 . . Energy Cannon 7 | . . . . . 2 . 1 1 1 . 2 Ballistic Gun 7 | 2 . . 1 2 . 1 1 . . . . Ballistic Cannon 1 | . . . . . . . 1 . . . . Launcher 2 | . . . . . 1 . . 1 . . . Special Weapon 3 | . . . . 1 . 1 . . 1 . . Impact Weapon . | . . . . . . . . . . . . Slashing Weapon 4 | . . . . . . 1 2 1 . . . Piercing Weapon . | . . . . . . . . . . . . Special Melee Weapon . | . . . . . . . . . . . . Unidentified Prototypes 5 | . . . . 1 2 . . . 2 . . Parts Lost 95 | . 1 . 1 . 17 2 16 15 14 . 29 Power 21 | . . . 1 . 3 . 4 3 4 . 6 Propulsion 30 | . . . . . 3 1 8 8 3 . 7 Utility 30 | . . . . . 6 . 2 4 5 . 13 Weapon 14 | . 1 . . . 5 1 2 . 2 . 3 Highest Loss Streak 21 | . 1 . 1 . 7 2 4 6 9 . 21 To Critical Strikes . | . . . . . . . . . . . . Average Backups 7 | . 8 12 12 10 6 3 3 4 4 6 6 Power . | . . 2 1 . . . . . . . . Propulsion 1 | . 3 5 3 1 . . . . . 1 1 Utility 2 | . . 1 2 4 2 2 2 2 1 1 3 Weapon 2 | . 3 4 4 3 2 . . 1 2 2 1 Tool/Special . | . . . . . . . . . . . . Unused Backups 20 | . . . 2 7 1 1 . 3 . 1 5 Power 2 | . . . 1 1 . . . . . . . Propulsion 2 | . . . . . 1 . . . . . 1 Utility 6 | . . . . 3 . 1 . . . . 2 Weapon 10 | . . . 1 3 . . . 3 . 1 2 Tool/Special . | . . . . . . . . . . . . Average Slot Usage (%) 86 | . 100 100 99 94 63 57 91 78 82 92 83 Engine 5 | . 5 . 9 13 3 6 . . . . . Core 2 | . 8 14 4 . 3 . 5 1 . . . Reactor 2 | . . . . . . . 3 7 8 10 8 Treads 12 | . 28 28 28 27 . . . . . . . Leg 4 | . . . . . 7 1 23 5 . . . Hover 3 | . . . . . . 7 . 7 9 18 18 Device 17 | . 14 14 14 14 20 18 26 21 14 14 21 Storage 7 | . 14 14 14 13 4 . . . 3 6 4 Processor 9 | . . . . . 18 13 15 17 19 17 15 Hackware 1 | . . . . . . . . 4 9 8 7 Energy Gun 7 | . 2 14 21 19 . . 3 2 1 . . Ballistic Gun 4 | . 25 14 6 2 . . 1 . . . . Special Weapon 1 | . . . . 2 3 2 . . . . . Slashing Weapon 1 | . . . . . . . 4 3 4 4 3 Peak Build Rating 172 | 7 14 13 16 28 86 93 122 147 142 156 172 Average Rating 65 | 5 11 13 14 18 69 63 114 114 117 145 148 On Entrance 55 | . 7 13 13 16 28 14 80 104 104 135 156 Avg Prop Armor Cover (%) 8 | . . . . . 26 9 6 15 4 12 5 Naked Turns . | . . . . . . . . . . . . Heaviest Build 79 | 12 30 30 33 45 77 16 62 71 56 65 79 Greatest Support 120 | 40 46 46 46 46 88 25 120 65 56 48 83 Greatest Overweight (x) 25 | 1 . . . . 25 1 . 1 3 1 2 Average Overweight (x) . | . . . . . . . . . . 1 . Largest Inventory Capacity 15 | 8 15 15 15 15 15 5 5 10 10 10 10 Average Capacity 11 | 7 13 15 15 14 13 5 5 5 9 10 9 Most Carried 15 | 1 14 12 15 15 15 5 5 8 9 10 10 Average Carried 8 | . 8 12 14 13 7 4 4 5 5 9 9 Final Capacity 15 | 8 15 15 15 15 5 5 5 5 10 10 5 Final Carried 15 | 1 12 12 15 15 5 5 5 5 8 10 4 Class Distribution -------------------- 50% | Mutant 19% | Scavenger-Mutant 12% | Infiltrator-Mutant 4% | Hacker-Mutant Dominant Class ---------------- Mutant | -10/Materials Mutant | -10/Mines Mutant | -10/Subcaves Mutant | -7/Scraptown Infiltrator-Mutant | -5/Factory Mutant | -4/Factory Scavenger-Mutant | -4/Extension Scavenger-Assassin | -3/Research Scavenger-Mutant | -3/Quarantine Scavenger-Mutant | -2/Research Scavenger-Ninja | -1/Access Resources | -11 -10 -10 -10 -7 -5 -4 -4 -3 -3 -2 -1 ----------- Run | Yrd Mat Min Sub Scr Fac Fac Ext Res Qua Res Acc Matter Collected 2816 | 298 267 . 102 100 366 . 749 449 185 63 237 Remotely . | . . . . . . . . . . . . Salvage Created 4572 | 102 468 . 78 . 1327 73 1008 828 476 . 212 Parts 181 | 4 19 . 3 . 47 4 24 38 30 . 12 Haulers Intercepted . | . . . . . . . . . . . . Recyclers Shooed 7 | . . . . . 2 . 3 2 . . . Parts Field Recycled . | . . . . . . . . . . . . Retrieved Matter . | . . . . . . . . . . . . Parts Self-Destructed 6 | . . . 6 . . . . . . . . Prevented . | . . . . . . . . . . . . Parts Restored 1 | . . . . . . . . . . . 1 Broken 1 | . . . . . . . . . . . 1 Kills | -11 -10 -10 -10 -7 -5 -4 -4 -3 -3 -2 -1 ------- Run | Yrd Mat Min Sub Scr Fac Fac Ext Res Qua Res Acc Combat Hostiles Destroyed 66 | . 9 . 2 . 28 3 9 7 5 . 3 Melee 15 | . . . . . . 1 1 5 5 . 3 Guns 19 | . 9 . 2 . 1 2 4 1 . . . Cannons 12 | . . . . . 9 . 3 . . . . AOE 13 | . . . . . 12 . . 1 . . . Classes Destroyed 14 | 2 1 . 1 . 8 . 1 1 . . . Worker 3 | . . . . . 2 . . . . . 1 Builder 9 | . . . . . 7 . 1 . 1 . . Tunneler 2 | 1 . . . . . . . 1 . . . Recycler 9 | 1 1 . . . 1 . 3 2 1 . . Mechanic 1 | . . . . . . . . 1 . . . Operator 2 | . . . . . 1 . . 1 . . . Watcher 1 | . . . . . 1 . . . . . . Swarmer 14 | . . . . . 11 3 . . . . . Grunt 19 | . 9 . . . 8 . 2 . . . . Sentry 5 | . . . . . 1 . 3 1 . . . Hunter 5 | . . . . . 2 . 2 1 . . . Programmer 20 | . . . . . 6 . 1 5 5 . 3 Behemoth 1 | . . . . . . . 1 . . . . Subdweller 2 | . . . 2 . . . . . . . . Best Kill Streak 13 | 2 2 . 2 . 13 3 3 3 2 . 3 Combat Bots Only 5 | . 2 . 2 . 5 3 3 2 2 . 3 Max Kills in Single Turn 10 | 1 1 . 1 . 10 1 1 2 1 . 1 Gunslinging . | . . . . . . . . . . . . Exploded 3 | . . . . . 3 . . 1 . . . Melee 1 | . . . . . . 1 1 1 1 . 1 Uniques/NPCs Destroyed . | . . . . . . . . . . . . Combat | -11 -10 -10 -10 -7 -5 -4 -4 -3 -3 -2 -1 -------- Run | Yrd Mat Min Sub Scr Fac Fac Ext Res Qua Res Acc Hostile Shots Fired 1085 | . 50 . 8 . 267 36 160 135 176 . 253 Missed 384 | . 15 . 4 . 92 15 56 43 65 . 94 Hits 701 | . 35 . 4 . 175 21 104 92 111 . 159 Projectile 701 | . 35 . 4 . 175 21 104 92 111 . 159 AOE 1 | . . . . . 1 . . . . . . Critical Strikes 33 | . . . . . 9 . 8 2 5 . 9 Actively Blocked 23 | . . . . . . . 8 1 5 . 9 Part Disruptions 4 | . . . . . 1 1 . . . . 2 Damage Taken 15244 | . 497 . 187 . 3514 293 2510 2055 2214 82 3892 Core 4183 | . 99 . 58 . 997 47 301 494 566 . 1621 Absorbed by Shields . | . . . . . . . . . . . . Core Remaining (%) 54 | 100 . . . 37 . . 69 . 18 100 . Volleys Fired 311 | 8 56 . 11 . 77 5 114 17 13 . 10 Largest 2 | 2 2 . 2 . 2 1 2 1 1 . 1 Hottest 162 | 40 85 . 125 . 162 23 90 94 113 . 120 Shots Fired 400 | 16 111 . 17 . 81 5 129 17 14 . 10 Gun 274 | 16 111 . 17 . 16 5 98 8 3 . . Cannon 63 | . . . . . 4 . 31 7 11 . 10 Launcher 9 | . . . . . 7 . . 2 . . . Special 54 | . . . . . 54 . . . . . . Kinetic 177 | 16 110 . 7 . 4 5 35 . . . . Thermal 137 | . 1 . 10 . 12 . 94 8 4 . 8 Explosive 9 | . . . . . 7 . . 2 . . . Electromagnetic 23 | . . . . . 4 . . 7 10 . 2 Impact 54 | . . . . . 54 . . . . . . Robot Hit Streak 16 | 8 16 . 12 . 15 2 12 9 . . 4 Robot Miss Streak 6 | 2 3 . 3 . 3 3 4 5 6 . . Penetration Max 1 | . . . . . 1 . 1 . . . . Secondary Targets 2 | . 2 . . . . . . . . . . Max Gunslinging Chain 1 | . 1 . . . . . . . . . . Capacitor 123 | . . . . . . . 94 15 7 . 7 Shots Hit Robots 320 | 10 78 . 14 . 46 7 88 35 29 . 13 Core Hits 167 | 5 29 . 11 . 54 4 39 13 7 . 5 Critical Kills 1 | . . . . . . . 1 . . . . Critical Parts Destroyed 8 | . . . . . 8 . . . . . . Critical Strikes 29 | . . . 1 . 8 1 6 7 4 . 2 Burn 3 | . . . . . . . 3 . . . . Destroy 2 | . . . 1 . . . 1 . . . . Blast 2 | . . . . . . . 2 . . . . Smash 8 | . . . . . 8 . . . . . . Sever 14 | . . . . . . 1 . 7 4 . 2 Melee Attacks 140 | . . . . . . 4 9 45 51 1 30 Impact . | . . . . . . . . . . . . Slashing 140 | . . . . . . 4 9 45 51 1 30 Piercing . | . . . . . . . . . . . . Sneak Attacks 8 | . . . . . . . . 6 1 . 1 Combat Hostiles . | . . . . . . . . . . . . Follow-up Attacks . | . . . . . . . . . . . . Damage Inflicted 13408 | 132 813 . 140 . 4750 176 2635 2269 1672 . 821 Guns 3273 | 132 812 . 140 . 251 50 1662 226 . . . Cannons 1081 | . . . . . 74 . 698 45 46 . 218 Explosions 2411 | . . . . . 2165 . . 246 . . . Melee 4367 | . . . . . . 124 263 1752 1626 . 602 Ramming 26 | . 1 . . . 10 2 12 . . . 1 Kinetic 1805 | 132 788 . 64 . 82 50 689 . . . . Thermal 2384 | . 24 . 76 . 169 . 1671 226 . . 218 Explosive 1810 | . . . . . 1564 . . 246 . . . Electromagnetic 766 | . . . . . 675 . . 45 46 . . Impact 2250 | . . . . . 2250 . . . . . . Slashing 4367 | . . . . . . 124 263 1752 1626 . 602 Piercing . | . . . . . . . . . . . . Highest Corruption 17 | . . . . . 8 . 6 5 10 3 17 Average Corruption 4 | . . . . . 3 . 4 1 9 2 6 Corruption Purged 6 | . . . . . . . . 6 . . . Corruption Blocked . | . . . . . . . . . . . . Effects 71 | . . . . . 18 . 24 5 9 3 12 Message Errors 17 | . . . . . 3 . 5 1 4 1 3 Matter Fused 15 | . . . . . 3 . 6 1 1 1 3 Heat Flow Errors 6 | . . . . . 2 . 3 . 1 . . Energy Discharges 7 | . . . . . 3 . 3 . . . 1 Parts Rejected 2 | . . . . . 2 . . . . . . Data Loss (minor) 12 | . . . . . 4 . 3 2 1 1 1 Data Loss (major) 4 | . . . . . 1 . 1 1 . . 1 Misfires 4 | . . . . . . . 3 . 1 . . Alerts 1 | . . . . . . . . . . . 1 Misdirections 3 | . . . . . . . . . 1 . 2 Overload Shots . | . . . . . . . . . . . . Overflow Damage 1732 | . . . . . 1141 . 7 276 246 . 62 Projectiles 1146 | . . . . . 1087 . 7 . . . 52 Explosions 54 | . . . . . 54 . . . . . . Melee 532 | . . . . . . . . 276 246 . 10 Knockbacks 17 | . . . . . 12 . 5 . . . . Impact 12 | . . . . . 12 . . . . . . Kinetic 5 | . . . . . . . 5 . . . . Secondary . | . . . . . . . . . . . . Self-Inflicted Damage 251 | . . . . . 185 1 . 65 . . . Shots 5 | . . . . . 4 . . 1 . . . Rammed 5 | . . . . . 1 2 . . . . 2 Targets Rammed 9 | . 1 . . . 3 2 1 . . . 2 Kicked 3 | . . . . . 2 . 1 . . . . Crushed 1 | . 1 . . . . . . . . . . Highest Temperature 503 | . 48 . . . 498 . 196 476 370 . 503 Average Temperature 100 | . 8 . . . 148 . 79 124 229 . 127 Received Heat Transfer 1014 | . 261 . . . 389 100 237 18 . . 9 Effects 17 | . . . . . 4 . . 5 2 . 6 Shutdowns 8 | . . . . . 3 . . 3 1 . 1 Energy Bleed 1 | . . . . . . . . 1 . . . Interference 5 | . . . . . . . . . . . 5 Short Circuit 2 | . . . . . 1 . . . 1 . . Damage (minor) 1 | . . . . . . . . 1 . . . Siege Activations . | . . . . . . . . . . . . Martial Activations . | . . . . . . . . . . . . Shielding Activations . | . . . . . . . . . . . . Robots Disrupted 1 | . . . . . 1 . . . . . . Combat Hostiles . | . . . . . . . . . . . . Robots Corrupted 7 | . . . . . 7 . . . . . . Combat Hostiles 6 | . . . . . 6 . . . . . . Parts Fried 15 | . . . . . 15 . . . . . . Impact Corruptions 32 | . . . . . 32 . . . . . . Robots Melted 1 | . . . . . . . 1 . . . . Combat Hostiles 1 | . . . . . . . 1 . . . . Parts Melted 7 | . . . . . . . 6 1 . . . Heat Transferred 3529 | . 30 . 95 . 259 . 2701 296 . . 148 Parts Sabotaged . | . . . . . . . . . . . . Parts Stolen . | . . . . . . . . . . . . Parts Stripped . | . . . . . . . . . . . . Power Chain Reactions 2 | . . . . . 2 . . . . . . Alert | -11 -10 -10 -10 -7 -5 -4 -4 -3 -3 -2 -1 ------- Run | Yrd Mat Min Sub Scr Fac Fac Ext Res Qua Res Acc Maximum Alert Level 3 | . . . . . 3 2 1 . . . . Low Security (%) 78 | 100 100 100 . . 44 . 69 100 100 100 100 Level 1 11 | . . . . . 9 84 30 . . . . Level 2 9 | . . . . . 43 15 . . . . . Level 3 . | . . . . . 2 . . . . . . Level 4 . | . . . . . . . . . . . . Level 5 . | . . . . . . . . . . . . High Security . | . . . . . . . . . . . . Max Security . | . . . . . . . . . . . . Peak Influence 836 | 5 54 . . . 836 448 290 193 51 15 116 Initial 409 | . . . . . . 409 214 14 51 . . Average 110 | . 16 . . . 273 379 130 61 9 1 13 Influence Increases 3837 | 10 247 . . . 1438 179 778 498 184 15 488 Destroy 0b10 Robot/C 1580 | . 180 . . . 560 60 440 140 100 . 100 Destroy 0b10 Robot/NC 140 | 10 5 . . . 60 . 25 25 10 . 5 Destroy Leader 284 | . 40 . . . 102 10 72 30 . . 30 Allied During Kill 175 | . . . . . . . 119 . . . 56 Successful Hack 286 | . 21 . . . 53 4 35 42 20 . 111 Disable Machine 210 | . . . . . 105 15 . 45 30 15 . Destroy Structure 412 | . 1 . . . 138 . 42 156 24 . 51 Partial Spotted 105 | . . . . . 15 45 30 15 . . . Lose Combat Pursuer 645 | . . . . . 405 45 15 45 . . 135 Influence Decreases 3755 | 10 247 . . . 602 577 1188 435 275 15 406 Entered New Map 705 | . . . . . . 427 224 14 40 . . Time Decay 1982 | 10 237 . . . 411 130 482 291 168 15 238 Lost Part 563 | . 10 . . . 170 20 116 130 67 . 50 Lost Ally 484 | . . . . . . . 366 . . . 118 Purge Threat 21 | . . . . . 21 . . . . . . Squads Dispatched 34 | . 1 . . . 12 2 3 5 2 1 8 Investigation 9 | . 1 . . . 4 . 2 . . . 2 Extermination 9 | . . . . . 2 . . 3 1 . 3 Reinforcement 11 | . . . . . 3 . 1 2 1 1 3 Assault 2 | . . . . . . 2 . . . . . Garrison 3 | . . . . . 3 . . . . . . Intercept . | . . . . . . . . . . . . Searches Triggered . | . . . . . . . . . . . . Construction Impeded 2 | . . . . . 2 . . . . . . Haulers Reinforced . | . . . . . . . . . . . . Active Scanning Responses . | . . . . . . . . . . . . Cargo Convoy Interrupts . | . . . . . . . . . . . . Stealth | -11 -10 -10 -10 -7 -5 -4 -4 -3 -3 -2 -1 --------- Run | Yrd Mat Min Sub Scr Fac Fac Ext Res Qua Res Acc Distress Signals 6 | . . . . . . . 3 . 1 . 2 Communications Jammed . | . . . . . . . . . . . . Distress Signals . | . . . . . . . . . . . . Times Spotted 204 | . 15 . 7 . 64 10 36 20 17 . 35 Peak Tracking Total 18 | . 3 . 3 . 14 6 5 6 8 . 18 Tactical Retreats 18 | . . . . . 8 3 1 3 . . 3 Traps | -11 -10 -10 -10 -7 -5 -4 -4 -3 -3 -2 -1 ------- Run | Yrd Mat Min Sub Scr Fac Fac Ext Res Qua Res Acc Traps Triggered 12 | . 4 . 1 . 2 1 2 . . 2 . Indirectly . | . . . . . . . . . . . . Trap Hack Attempts . | . . . . . . . . . . . . Triggered . | . . . . . . . . . . . . Disarmed . | . . . . . . . . . . . . Reprogrammed . | . . . . . . . . . . . . Reused . | . . . . . . . . . . . . Traps Extracted . | . . . . . . . . . . . . Installed . | . . . . . . . . . . . . Triggered . | . . . . . . . . . . . . Machines | -11 -10 -10 -10 -7 -5 -4 -4 -3 -3 -2 -1 ---------- Run | Yrd Mat Min Sub Scr Fac Fac Ext Res Qua Res Acc Machines Disabled 14 | . . . . . 7 1 . 3 2 1 . Max in Single Turn 5 | . . . . . 5 1 . 2 1 1 . Garrison Access 1 | . . . . . . 1 . . . . . Machines Repaired . | . . . . . . . . . . . . Machines Dismantled 1 | . . . . . . 1 . . . . . Machines Sabotaged . | . . . . . . . . . . . . Overloaded Fab Kills . | . . . . . . . . . . . . Hacking | -11 -10 -10 -10 -7 -5 -4 -4 -3 -3 -2 -1 --------- Run | Yrd Mat Min Sub Scr Fac Fac Ext Res Qua Res Acc Machines Accessed 58 | . 7 . . 3 12 6 11 6 4 . 9 Terminals 33 | . 7 . . . 4 2 10 2 3 . 5 Fabricators 2 | . . . . . . 1 . . . . 1 Repair Stations 3 | . . . . . . 3 . . . . . Recycling Units 8 | . . . . . 4 . 1 2 . . 1 Scanalyzers 6 | . . . . . 2 . . 2 1 . 1 Garrison Access 3 | . . . . . 2 . . . . . 1 Total Hacks 151 | . 19 . . 26 33 9 25 12 8 . 19 Successful 85 | . 9 . . 26 16 2 10 6 5 . 11 Failed 65 | . 10 . . . 16 7 15 6 3 . 8 Catastrophic 18 | . . . . . 5 3 6 1 1 . 2 Database Lockouts 1 | . . . . . 1 . . . . . . Manual 57 | . 20 . . . 17 5 7 1 2 . 5 Terminals 74 | . 19 . . . 13 3 20 3 5 . 11 Fabricators 4 | . . . . . . 3 . . . . 1 Repair Stations 3 | . . . . . . 3 . . . . . Recycling Units 22 | . . . . . 11 . 5 4 . . 2 Scanalyzers 15 | . . . . . 5 . . 5 3 . 2 Garrison Access 7 | . . . . . 4 . . . . . 3 Terminal Hacks 54 | . 2 . . 26 8 1 8 1 3 . 5 Record 28 | . . . . 26 . . . 1 1 . . Robot Analysis 3 | . 2 . . . . . . . 1 . . Prototype ID Bank 1 | . . . . . 1 . . . . . . Open Door 10 | . . . . . . 1 8 . 1 . . Emergency Access Points 1 | . . . . . . . . . . . 1 Terminal Index 1 | . . . . . . . . . . . 1 Recycling Unit Index 1 | . . . . . 1 . . . . . . Unreport Threat 2 | . . . . . 2 . . . . . . Locate Traps 5 | . . . . . 3 . . . . . 2 Hauler Manifests 1 | . . . . . 1 . . . . . . Zone Layout 1 | . . . . . . . . . . . 1 Fabricator Hacks . | . . . . . . . . . . . . Repair Station Hacks 1 | . . . . . . 1 . . . . . Refit 1 | . . . . . . 1 . . . . . Recycling Unit Hacks 2 | . . . . . . . 1 1 . . . Retrieve Components 2 | . . . . . . . 1 1 . . . Scanalyzer 12 | . . . . . 4 . . 4 2 . 2 Insert Component 2 | . . . . . 2 . . . . . . Analyze 1 | . . . . . 1 . . . . . . Retrieve Study 9 | . . . . . 1 . . 4 2 . 2 Garrison Access Hacks . | . . . . . . . . . . . . Unauthorized Hacks 15 | . 7 . . . 4 . 1 . . . 3 Terminals 10 | . 7 . . . . . 1 . . . 2 Assimilate 1 | . . . . . . . . . . . 1 Botnet 3 | . 2 . . . . . . . . . 1 Disrupt 1 | . . . . . . . 1 . . . . Skim 5 | . 5 . . . . . . . . . . Fabricators 1 | . . . . . . . . . . . 1 Fabnet 1 | . . . . . . . . . . . 1 Repair Stations . | . . . . . . . . . . . . Recycling Units 4 | . . . . . 4 . . . . . . Fedlink 4 | . . . . . 4 . . . . . . Scanalyzers . | . . . . . . . . . . . . Garrison Access . | . . . . . . . . . . . . Data Cores Recovered . | . . . . . . . . . . . . Used . | . . . . . . . . . . . . Hacking Detections 48 | . 7 . . . 12 5 6 6 3 . 9 Full Trace Events 4 | . . . . . . . 2 . . . 2 Feedback Events 1 | . . . . . . . . . . . 1 Hackware Fried 1 | . . . . . . . . . . . 1 Feedback Blocked . | . . . . . . . . . . . . Robot Schematics Acquired . | . . . . . . . . . . . . Robots Built . | . . . . . . . . . . . . Authchips . | . . . . . . . . . . . . Time . | . . . . . . . . . . . . Total Robot Build Rating . | . . . . . . . . . . . . Part Schematics Acquired 1 | . . . . . 1 . . . . . . Parts Built . | . . . . . . . . . . . . Authchips . | . . . . . . . . . . . . Time . | . . . . . . . . . . . . Total Part Build Rating . | . . . . . . . . . . . . Part Studies Acquired 9 | . . . . . 1 . . 4 2 . 2 Parts Repaired . | . . . . . . . . . . . . Time . | . . . . . . . . . . . . Parts Recycled . | . . . . . . . . . . . . Recycled Matter . | . . . . . . . . . . . . Retrieved Matter . | . . . . . . . . . . . . Retrieved Components 11 | . . . . . . . 10 1 . . . Parts Scanalyzed 1 | . . . . . 1 . . . . . . Part Schematics Acquired 1 | . . . . . 1 . . . . . . Parts Damaged . | . . . . . . . . . . . . Bothacking | -11 -10 -10 -10 -7 -5 -4 -4 -3 -3 -2 -1 ------------ Run | Yrd Mat Min Sub Scr Fac Fac Ext Res Qua Res Acc Used RIF Installer . | . . . . . . . . . . . . Robots Hacked . | . . . . . . . . . . . . Non-combat . | . . . . . . . . . . . . Combat . | . . . . . . . . . . . . Robot Hacks Applied . | . . . . . . . . . . . . Relay Couplers Released 4 | . . . . . . 4 . . . . . Machine Destruction 4 | . . . . . . 4 . . . . . Fabnet Peak Effective % . | . . . . . . . . . . . . Robots Rewired 10 | . . . . . . . 10 . . . . Allies Hacked . | . . . . . . . . . . . . Hacks Repelled . | . . . . . . . . . . . . Allies | -11 -10 -10 -10 -7 -5 -4 -4 -3 -3 -2 -1 -------- Run | Yrd Mat Min Sub Scr Fac Fac Ext Res Qua Res Acc Total Allies 35 | . . 5 . . . . 21 . . . 9 Largest Group 8 | . . 5 5 2 1 . 6 . . . 8 Highest-Rated Group 259 | . . 86 86 31 16 . 259 . . . 112 Highest-Rated Ally 51 | . . 31 31 16 16 . 51 . . . 45 Total Orders . | . . . . . . . . . . . . Ally Attacks 161 | . . . 31 . 4 . 102 . . . 24 Total Damage 3622 | . . . 338 . 50 . 2468 . . . 766 Kills 21 | . . . 5 . . . 14 . . . 2 Allies Corrupted . | . . . . . . . . . . . . Allies Melted 1 | . . . . . . . 1 . . . . Intel | -11 -10 -10 -10 -7 -5 -4 -4 -3 -3 -2 -1 ------- Run | Yrd Mat Min Sub Scr Fac Fac Ext Res Qua Res Acc Active Infowar (turns) 7830 | 21 1122 158 611 2312 1070 259 530 773 78 275 621 Sensors 1763 | . . . . . . 151 432 523 . 102 555 Terrain 1921 | . . . . . 1067 . 98 756 . . . Seismic 5798 | 21 1122 158 611 2312 1070 259 245 . . . . Machine Analysis 966 | . . . . . . . . . 78 275 613 Cloaking 458 | . . . . . . . . . . . 458 Jamming 98 | . . . . . 98 . . . . . . ECM 36 | . . . . . 1 8 . 17 . . 10 Robot Analysis Total 3 | . 2 . . . . . . . 1 . . Derelict Logs Recovered 7 | . . . 3 4 . . . . . . . Drone Launches . | . . . . . . . . . . . . Drone Recoveries . | . . . . . . . . . . . . Exploration | -11 -10 -10 -10 -7 -5 -4 -4 -3 -3 -2 -1 ------------- Run | Yrd Mat Min Sub Scr Fac Fac Ext Res Qua Res Acc Turns Passed 9670 | 104 1122 158 611 2312 1430 265 1292 917 521 275 663 Spaces Moved 7208 | 46 568 93 343 1485 1260 486 810 750 384 226 757 Core 297 | 3 . . . 93 181 20 . . . . . Treads 2450 | 43 568 93 343 1392 11 . . . . . . Legs 1906 | . . . . . 890 1 752 263 . . . Wheels 274 | . . . . . . . . 6 102 166 . Hover 2096 | . . . . . 178 338 . 481 282 60 757 Flight 185 | . . . . . . 127 58 . . . . Fastest Speed 36 | 50 160 160 160 50 40 36 50 44 57 112 41 Average Speed 109 | 153 160 160 160 153 89 39 114 86 79 112 64 Slowest Speed 1300 | 160 160 160 160 160 1300 150 120 190 150 118 201 Overloaded Moves . | . . . . . . . . . . . . Propulsion Burnouts . | . . . . . . . . . . . . Robots Hopped 8 | . . . . . . 5 3 . . . . Potential Cave-ins . | . . . . . . . . . . . . Cave-ins Triggered . | . . . . . . . . . . . . Exploration Rate (%) 39 | 4 87 27 31 91 34 13 84 20 44 5 28 Regions Visited 11 Branch Regions 5 Pre-discovered Areas 5 | . . . . 4 1 . . . . . . Known Exits Taken 7 | . . . . 1 1 1 1 1 1 1 . Unknown Exits Taken 4 | 1 1 1 1 . . . . . . . . Scrap Searched 7 | . . . . 7 . . . . . . . Spaces Dug 46 | . . . . . 9 . . 9 9 . 19 Terrain Destroyed 237 | . . . . . 82 . 15 109 12 . 19 Melee 32 | . . . . . . . . 9 8 . 15 Projectile 43 | . . . . . 20 . 15 . 4 . 4 AOE 162 | . . . . . 62 . . 100 . . . Terrain Rammed . | . . . . . . . . . . . . Walls Destroyed . | . . . . . . . . . . . . Machines Disabled . | . . . . . . . . . . . . Actions | -11 -10 -10 -10 -7 -5 -4 -4 -3 -3 -2 -1 --------- Run | Yrd Mat Min Sub Scr Fac Fac Ext Res Qua Res Acc Total 8465 | 61 680 102 388 1527 1479 528 1129 939 507 245 880 Wait 336 | . 34 10 15 . 86 5 66 63 22 . 35 Move 7183 | 45 567 92 342 1484 1259 475 805 749 383 225 757 Hop 6 | . . . . . . 5 1 . . . . Pick Up 73 | 1 10 . 6 14 6 3 9 7 8 5 4 Fast Attach 121 | 7 1 . 3 8 14 13 16 24 17 4 14 Attach 54 | . 1 . 2 2 17 5 10 4 6 2 5 Detach 14 | . . . . 2 6 1 . 2 . . 3 Swap 42 | . 6 . 1 2 1 . 11 10 3 2 6 Drop 102 | . 4 . 8 15 10 4 19 18 4 6 14 Fire 311 | 8 56 . 11 . 77 5 114 17 13 . 10 Melee 140 | . . . . . . 4 9 45 51 1 30 Ram 4 | . . . . . . 2 . . . . 2 Kick 3 | . . . . . 2 . 1 . . . . Crush 2 | . 1 . . . 1 . . . . . . Escape Stasis . | . . . . . . . . . . . . Rewire 69 | . . . . . . 1 68 . . . . Trap . | . . . . . . . . . . . . Miscellaneous 5 | . . . . . . 5 . . . . . Route ------- -11/Scrapyard -10/Materials (discovered 4 exits: [*Mat x3] / [*Min]) -10/Mines (discovered 2 exits: [*Mat] / [*Sub]) -10/Subcaves (discovered 2 exits: [*Mat] / *Scr) -7/Scraptown (discovered 2 exits: *Fac x2) -5/Factory (discovered 3 exits: *Fac x2 / Upp) -4/Factory (discovered 3 exits: Res x2 / *Ext) -4/Extension (discovered 2 exits: *Res / [*Cet]) -3/Research -3/Quarantine -2/Research -1/Access History --------- Turn | Location | Event 28 | -11/Scrapyard | Discovered new exit (range 15) 105 | -11/Scrapyard | Entered Materials 308 | -10/Materials | Build established: Mutant 510 | -10/Materials | Discovered new exit (range 3) 829 | -10/Materials | Discovered new exit (range 9) 914 | -10/Materials | Learned location of 1 exit from Recycling 1049 | -10/Materials | Learned Storage terminal intel 1102 | -10/Materials | Learned 2 Mines zone layouts 1127 | -10/Materials | Discovered new exit (range 3) 1174 | -10/Materials | Learned 4 Recycling zone layouts 1197 | -10/Materials | Learned 2 Mines zone layouts 1208 | -10/Materials | Discovered new exit (range 10) 1227 | -10/Materials | Entered Mines 1232 | -10/Mines | Assisted by bots powering up and referring to "LRC-V3" 1344 | -10/Mines | Discovered new exit (range 11) 1357 | -10/Mines | Discovered new exit (range 8) 1385 | -10/Mines | Entered Subcaves 1385 | -10/Subcaves | Accompanied by 5 allies 1386 | -10/Subcaves | Approached by a straggling Scientist 1390 | -10/Subcaves | Led the pair of lost Derelicts to an unsafe place 1430 | -10/Subcaves | Learned Materials trap positions 1454 | -10/Subcaves | Learned 2 Materials zone layouts 1501 | -10/Subcaves | Discovered new exit (range 15) 1557 | -10/Subcaves | Core integrity fell below 50% 1635 | -10/Subcaves | A Subdweller sparked back to life 1635 | -10/Subcaves | A Subdweller sparked back to life 1676 | -10/Subcaves | Found Prototype Leg 1832 | -10/Subcaves | Learned Materials emergency access door positions 1834 | -10/Subcaves | Scientist uncovered a shortcut to Scraptown 1996 | -10/Subcaves | Entered Scraptown 1996 | -7/Scraptown | Accompanied by 2 allies 2286 | -7/Scraptown | Heard Great Nut preacher, LISTEN AND RECITE! 2299 | -7/Scraptown | Scanned Subdweller tech in exchange for log data 2302 | -7/Scraptown | Learned Research security intel 2304 | -7/Scraptown | Learned Research trap positions 2305 | -7/Scraptown | Learned Research interactive machine intel 2307 | -7/Scraptown | Learned Research emergency access door positions 2331 | -7/Scraptown | Discovered new exit (range 13) 2452 | -7/Scraptown | Visited Fellowship of the Rings 2473 | -7/Scraptown | Visited SPCMW 2500 | -7/Scraptown | Visited UFD Registry 2500 | -7/Scraptown | Registered with UFD as "Matterpod" 2545 | -7/Scraptown | Visited Cyclists 2561 | -7/Scraptown | Entered Cyclist Reading Room 2606 | -7/Scraptown | Visited Assassins FH 2635 | -7/Scraptown | Visited The Evicted 2652 | -7/Scraptown | Visited Red Mages 2956 | -7/Scraptown | Visited TADAMA 3043 | -7/Scraptown | Visited A0-MCA Data Center 3052 | -7/Scraptown | Given a C rating by A0-MCA 3056 | -7/Scraptown | Found A0-MCA's Component Scanner 3089 | -7/Scraptown | Visited Science Testing Area 3115 | -7/Scraptown | Visited Chapter 10 3137 | -7/Scraptown | Visited Cartography Club 3214 | -7/Scraptown | Found Surveybot 17 Chip 3435 | -7/Scraptown | Learned location of Storage (-7) 3435 | -7/Scraptown | Learned location of Lower Caves (-7) 3435 | -7/Scraptown | Learned location of Quarantine (-3) 3435 | -7/Scraptown | Learned 12 Materials zone layouts 3435 | -7/Scraptown | Learned 4 Mines zone layouts 3435 | -7/Scraptown | Learned 4 Storage zone layouts 3435 | -7/Scraptown | Learned 8 Lower Caves zone layouts 3435 | -7/Scraptown | Learned 16 Lower Caves zone layouts 3435 | -7/Scraptown | Learned 20 Lower Caves zone layouts 3435 | -7/Scraptown | Learned 12 Upper Caves zone layouts 3435 | -7/Scraptown | Learned 24 Upper Caves zone layouts 3435 | -7/Scraptown | Learned 8 Proximity Caves zone layouts 3435 | -7/Scraptown | Learned location of 1 exit from Factory 3435 | -7/Scraptown | Learned 16 Proximity Caves zone layouts 3435 | -7/Scraptown | Learned location of 1 exit from Lower Caves 3435 | -7/Scraptown | Learned location of 3 exits from Lower Caves 3435 | -7/Scraptown | Identified exit to Factory 3476 | -7/Scraptown | Visited DA-N13 Charitable Foundation 3490 | -7/Scraptown | Found DCF Scrap (28 items) 3579 | -7/Scraptown | Visited Scrapoid Pod Storage 3606 | -7/Scraptown | Visited Abandonware Association 3627 | -7/Scraptown | Learned abandonware demo "POISON.EXE" 3627 | -7/Scraptown | Learned abandonware demo "HACKBUD.EXE" 3690 | -7/Scraptown | Delivered Scrap Shield to a Scientist 3836 | -7/Scraptown | Visited Junk Repository 3889 | -7/Scraptown | Visited Junk Cannon Lab 3922 | -7/Scraptown | Found Prototype Special Weapon 3922 | -7/Scraptown | Identified Junk Cannon 3951 | -7/Scraptown | Visited Supply Room 4223 | -7/Scraptown | Met Optimus 4223 | -7/Scraptown | Accepted into 0bPrime 4308 | -7/Scraptown | Entered Factory 4308 | -5/Factory | Accompanied by 1 ally 4308 | -5/Factory | Evolved 10 slots: Power x1, Propulsion x1, Utility x8 4309 | -5/Factory | Identified exit to Upper Caves 4310 | -5/Factory | Identified Arachnoskeleton 4311 | -5/Factory | Attached Arachnoskeleton, gained temporary slots: Propulsion x3 4327 | -5/Factory | Loaded intel: 8 recycling unit locations 4465 | -5/Factory | Learned location of Protoforge (-2) 4614 | -5/Factory | Build established: Infiltrator-Mutant 4620 | -5/Factory | Discovered new exit (range 14) 4625 | -5/Factory | Discovered new exit (range 11) 4713 | -5/Factory | Central database locked down 5490 | -5/Factory | Lost 4 parts (1p2u1w) 5509 | -5/Factory | Garrison activated, responded to threat 5577 | -5/Factory | Core integrity fell below 50% 5604 | -5/Factory | Lost 7 parts (1n3u3w) 5604 | -5/Factory | Assembled infested ambush trap array 5667 | -5/Factory | Found Powered Armor 5733 | -5/Factory | Core integrity fell below 20% 5738 | -5/Factory | Identified exit to Factory 5738 | -5/Factory | Entered another Factory area 5738 | -4/Factory | Evolved 2 slots: Propulsion x2 5739 | -4/Factory | Identified exit to Research 5806 | -4/Factory | Found Quantum Capacitor 5826 | -4/Factory | Found Quantum Capacitor 5873 | -4/Factory | Build established: Mutant 5899 | -4/Factory | Assembled infested ambush trap array 5925 | -4/Factory | Spotted B-86 Titan 5938 | -4/Factory | Discovered new exit (range 6) 6003 | -4/Factory | Identified exit to Extension 6003 | -4/Factory | Entered Extension 6023 | -4/Extension | Rescued a captive Derelict 6024 | -4/Extension | Rescued a captive Derelict 6097 | -4/Extension | Lost 4 allies 6146 | -4/Extension | Rescued a captive Derelict 6343 | -4/Extension | Rescued a captive Derelict 6359 | -4/Extension | Rescued a captive Derelict 6365 | -4/Extension | Build established: Scavenger-Mutant 6423 | -4/Extension | Rescued a captive Derelict 6426 | -4/Extension | Rescued a captive Derelict 6475 | -4/Extension | Lost 5 allies 6528 | -4/Extension | Disrupted transfer network 6800 | -4/Extension | Spotted B-86 Titan 6831 | -4/Extension | Spotted B-86 Titan 6861 | -4/Extension | Destroyed B-86 Titan 6879 | -4/Extension | Lost 4 allies 6885 | -4/Extension | Lost 4 parts (2p1n1u) 6986 | -4/Extension | Lost 4 parts (2n2w) 7094 | -4/Extension | Rescued a captive Derelict 7103 | -4/Extension | Rescued a captive Derelict 7104 | -4/Extension | Rescued a captive Derelict 7149 | -4/Extension | Rescued a captive Derelict 7277 | -4/Extension | Discovered new exit (range 13) 7279 | -4/Extension | Discovered exit to Research (range 15) 7280 | -4/Extension | Lost 6 allies 7295 | -4/Extension | Entered Research 7295 | -3/Research | Evolved 2 slots: Power x1, Utility x1 7296 | -3/Research | Loaded intel: 83 trap records 7299 | -3/Research | Loaded intel: 46 interactive machine locations 7752 | -3/Research | Found Tactical Quantum Warhead 7886 | -3/Research | Lost 6 parts (1p4n1u) 7945 | -3/Research | Spotted B-86 Titan 8007 | -3/Research | Discovered new exit (range 15) 8211 | -3/Research | Identified exit to Quarantine 8212 | -3/Research | Entered Quarantine 8239 | -3/Quarantine | Lost 3 parts (1n2u) 8312 | -3/Quarantine | Lost 4 parts (1p1n2u) 8396 | -3/Quarantine | Found Alien Reactor 8396 | -3/Quarantine | Identified Matter Drive 8475 | -3/Quarantine | Found Alien Artifact 8475 | -3/Quarantine | Identified Core Reset Matrix 8475 | -3/Quarantine | Used Core Reset Matrix 8479 | -3/Quarantine | Detected hypermatrix surge 8479 | -3/Quarantine | Sensed 9 artifacts in vicinity 8513 | -3/Quarantine | Core integrity fell below 50% 8542 | -3/Quarantine | System corruption reached 10% 8575 | -3/Quarantine | Lost 9 parts (3p2n3u1w) 8634 | -3/Quarantine | Met incapacitated Sigix Warrior 8634 | -3/Quarantine | Lockdown squad dispatched 8636 | -3/Quarantine | Acquired the access code to the Sigix quarantine chamber 8637 | -3/Quarantine | Unlocked Sigix quarantine chamber 8640 | -3/Quarantine | Found Sigix Containment Pod 8698 | -3/Quarantine | Cryocooling Duct disabled 8713 | -3/Quarantine | Ambient heat levels rising (+20) 8713 | -3/Quarantine | Non-combat units ordered to evacuate 8730 | -3/Quarantine | Discovered new exit (range 5) 8732 | -3/Quarantine | Identified exit to Research 8733 | -3/Quarantine | Core integrity fell below 20% 8733 | -3/Quarantine | Entered Research 8733 | -2/Research | Evolved 2 slots: Propulsion x1, Utility x1 8802 | -2/Research | Found Quantum Capacitor 8979 | -2/Research | Discovered new exit (range 12) 9007 | -2/Research | Identified exit to Access 9008 | -2/Research | Entered Access 9008 | -1/Access | Evolved 2 slots: Utility x2 9298 | -1/Access | Lost 8 parts (3p2n2u1w) 9599 | -1/Access | Hacking Suite fried by hacking feedback 9626 | -1/Access | System corruption reached 10% 9633 | -1/Access | Core integrity fell below 50% 9638 | -1/Access | Emitted hypermatrix ping 9643 | -1/Access | Assembled emerged from beneath the floor 9653 | -1/Access | Core integrity fell below 20% 9671 | -1/Access | Lost 21 parts (3p5n11u2w) 9671 | -1/Access | Destroyed by H-88 Terminator with KE Penetrator Last Messages --------------- 09648_ Slug penetrates H-88 Terminator. 09649_ as-56487 destroyed. 09649_ as-61971 destroyed. 09649_ as-46945 destroyed. 09649_ as-37308 destroyed. 09652_ Penetrated by Slug. 09655_ K-01 Serf destroyed. 09655_ Penetrated by Slug. 09655_ K-01 Serf destroyed. 09656_ Penetrated by Slug. 09658_ Detected hypermatrix ping. 09658_ Slug penetrates Wall. 09664_ System corrupted: Component data lost. 09664_ K-01 Serf cleans the Longscan Aggregator. 09664_ Slug penetrates Wall. 09669_ Component scanned: Lgt. Quantum Reactor [H-88 Terminator]. 09669_ Slug penetrates Wall. 09669_ K-01 Serf cleans the Longscan Aggregator. 09670_ Slug penetrates Wall. Map ----- +----------------------------------------------------+ | ?????????????????????? #???????????????????? | | ??????????????????????? ????????????????????? | | ???????????????????????? ?????????????????????? | | #########################/################???????? | | %%[!!!=%]= % #= #???????? | | =!%![=]=]* /%= #???????? | | #+#####!! ""####### #*! #???????? | | ???#[% ""#?????# # #???????? | | ???# ""#?????# # #???????? | | ??# T#?????# # #???????? | | ] ??# ""#?????# ###/#########+##???????? | | #?# ""#?????# #????????? | | #?# ""#?????# ph #????????? | | #?""""""""""""?????######p#+###### #????????? | | "" #??????????????????# s #????????????? | | "" #??????????????????# s #????????????? | | "" #??????????????????# k #????????????? | | #####??????????????????# #????????????? | | #?????????????????????# "" +????????????? | | #?????????????????????# k "" #????????????? | | #?????????????????????# """""" #????????????? | | #?????????????????????# """""" #????????????? | | #?????????????????????# "" #????????????? | | #?????????????????????#t "" #????????????? | | #?????????????????????# #??????????""? | | #?????????????????????#k@ #??????????""? | | #?????????????????????#/#+##########??????????""? | | #?????????????????????# ???????????????????????S? | | ##????????????????????# ??????????????????????""? | | "#????????????????????# ??????????????????????""? | | "##????????????????????# ??????????????????????""? | | ##?????????????????????# ????????????????????????? | | ???????????????????????# ????????????????????????? | | ???????????????????????? ????????????????????????? | | ?????????????????????????????????????????????????? | | ?????????????????????????????????????????????????? | | ?????????????????????????????????????????????????? | | ?????????????????????????????????????????????????? | | ?????????????????????????????????????????????????? | | ?????????????????????????????????????????????????? | | ?????????????????????????????????????????????????? | | ?????????????????????????????????????????????????? | | ?????????????????????????????????????????????????? | | ?????????????????????????????????????????????????? | | ?????????????????????????????????????????????????? | | ?????????????????????????????????????????????????? | | ?????????????????????????????????????????????????? | | ?????????????????????????????????????????????????? | | ?????????????????????????????????????????????????? | | ?????????????????????????????????????????????????? | +----------------------------------------------------+ Best States ------------- Heat Dissipation 103 Coolant Potential 180 Energy Generation 60 Energy Capacity 625 Matter Stores 300 Matter Capacity 300 Sight Range 16 Robot Scan Range 16 Terrain Scan Range 16 Terrain Scan Density 1210 ECM Strength 2 Jamming Range 12 Cloak Strength 3 Armor Coverage 600 Evasion (%) 70 Targeting Accuracy 8 Target Analysis 12 Recoil Reduction 2 Kinecelleration 40 Offensive Hacking 24 Defensive Hacking 12 Item Schematics ----------------- None Robot Schematics ------------------ None Fabricated ------------ Nothing Repaired ---------- Nothing Studied --------- Cmb. Antigrav System | -3/Quarantine | Hacked Imp. Antigrav System | -3/Quarantine | Hacked Imp. Gyrokinetic Inverter | -1/Access | Hacked Mic. Antimatter Reactor | -1/Access | Hacked Alien Tech Used ----------------- Matter Drive Core Reset Matrix Achievements -------------- Nice Directions, Buddy Challenges ------------ None Game ------ Seed JammingBattleActivator Manual? 0 Play Time 01:46:53 Cumulative 267.7 hours Start 2026.01.03 @ 16:30:48 End 2026.01.03 @ 18:21:30 Sessions 1 Manual Loads 0 Difficulty Rogue Special Mode None Game No. 206 Rogue 206 Adventurer 0 Explorer 0 Win Type - Total 11 Types 7/0/3/1/0/0/0/0/0/0 Lore% 85 Gallery% 73 Achievement% 57 Wizard Run 0 Options --------- Layout 1 ASCII 0 Keyboard 0 Movement Numpad Keybinds 0 Fullscreen 1 Font 24/Smallcaps Map View 50x35 Zoom Use 0% Tactical HUD 1 Map Filters NONE Filters NONE Steam 1 RUN: 4920783a-99b6-4067-9fed-b126edfeb367